bitfinex-derivatives/quotes_ETHF0:USTF0_20251210
["timestamp","ask_amount","ask_price","bid_price","bid_amount"]
[1765335933622,0.69654377,3313.3,3313.2,1.4516]
[1765335933822,1.43514377,3313.3,3313.2,1.4516]
[1765335934223,1.43514377,3313.3,3313.2,2.53056956]
[1765335935225,0.00224377,3313.3,3313.2,2.53056956]
[1765335937320,0.69654377,3313.3,3313.2,2.53056956]
[1765335937826,1.43514377,3313.3,3313.2,2.53056956]
[1765335938519,0.69654377,3313.3,3313.2,2.53056956]
[1765335940723,1.43514377,3313.3,3313.2,2.53056956]
[1765335941027,1.43514377,3313.3,3313.2,1.78846956]
[1765335941524,1.43514377,3313.3,3313.2,2.53056956]
[1765335942622,1.66786306,3313.3,3313.2,1.78846956]
[1765335943024,1.43514377,3313.3,3313.2,1.78846956]
[1765335943230,1.66786306,3313.3,3313.2,1.78846956]
[1765335944127,0.92926306,3313.3,3313.2,2.53056956]
[1765335944325,0.23496306,3313.3,3313.2,2.53056956]
[1765335944525,0.00224377,3313.3,3313.2,2.53056956]
[1765335945823,1.43514377,3313.3,3313.2,2.53056956]
[1765335946019,1.66786306,3313.3,3313.2,1.78846956]
[1765335946828,2.3176679,3313.3,3313.2,1.78846956]
[1765335947034,1.4329,3313.2,3313.1,1.78846956]
[1765335947233,4.87341929,3313.2,3313.1,1.52171033]
[1765335947534,4.87341929,3313.2,3313.1,0.81221033]
[1765335948829,4.87341929,3313.2,3313.1,2.26381033]
[1765335949034,4.13481929,3313.2,3313.1,2.26381033]
[1765335949336,4.87341929,3313.2,3313.1,2.26381033]
[1765335950536,4.87341929,3313.2,3313.1,1.52171033]
[1765335950737,4.87341929,3313.2,3313.1,0.81221033]
[1765335951842,1.8192,3313.0,3312.9,0.81221033]
[1765335952035,1.4329,3312.8,3312.7,0.81221033]
[1765335952341,1.4329,3312.6,3312.5,2.26381033]
[1765335952542,1.66561929,3312.6,3312.5,2.69641033]
[1765335953139,1.4329,3312.6,3312.5,1.8842]
[1765335954240,1.4329,3312.6,3312.5,1.8268]
[1765335954841,2.11460484,3313.0,3312.9,0.6891]
[1765335955140,2.34699753,3313.0,3312.9,0.6891]
[1765335955640,2.34699753,3313.0,3312.5,0.4326]
[1765335955842,1.69719269,3312.9,3312.8,0.6891]
[1765335956439,3.9513,3313.2,3313.1,1.3738]
[1765335956636,4.90488361,3313.2,3313.1,1.3738]
[1765335956941,0.7435,3312.7,3312.6,5.39381033]
[1765335957138,0.23228361,3313.1,3312.6,5.39381033]
[1765335957339,0.7435,3312.7,3312.6,4.5816]
[1765335957535,1.4648,3312.7,3312.6,3.2078]
[1765335957738,1.4648,3312.6,3312.3,0.81221033]
[1765335958045,2.11460484,3312.4,3312.3,2.18601033]
[1765335960342,2.11460484,3312.4,3312.3,0.81221033]
[1765335960539,1.4648,3312.2,3312.1,0.00389899]
[1765335961438,1.4648,3312.0,3311.9,0.00452502]
[1765335961743,5.95619774,3312.0,3311.9,0.00452502]
[1765335962133,5.95605991,3312.0,3311.9,0.00452502]
[1765335962533,5.95605991,3312.0,3311.9,0.00820915]
[1765335963139,5.72410484,3312.0,3311.9,0.00820915]
[1765335965448,5.72410484,3312.0,3311.3,3.2078]
[1765335965638,2.11460484,3311.4,3311.3,3.8969]
[1765335966149,2.11460484,3311.4,3311.3,0.6891]
[1765335966543,2.11460484,3311.4,3311.3,0.69154955]
[1765335966847,2.11460484,3311.4,3311.0,0.43982502]
[1765335966848,1.4648,3311.1,3311.0,0.00452502]
[1765335967049,2.11460484,3311.1,3311.0,0.00452502]
[1765335967941,1.4648,3310.6,3310.5,1.8091]
[1765335968146,2.11460484,3310.6,3310.5,1.8091]
[1765335968844,1.4648,3310.5,3310.4,3.8969]
[1765335969045,1.4648,3310.5,3310.0,0.4353]
[1765335969046,1.4648,3310.3,3310.2,0.69362502]
[1765335969344,2.11460484,3310.3,3310.2,0.00838661]
[1765335969746,2.11460484,3310.3,3310.2,0.69748661]
[1765335970552,2.11460484,3310.3,3310.2,1.38218661]
[1765335971051,2.11460484,3310.3,3310.2,0.69748661]
[1765335971255,2.11460484,3310.3,3310.2,0.00838661]
[1765335972261,2.11460484,3310.3,3310.2,0.69978661]
[1765335972550,2.11460484,3310.3,3310.2,1.41058661]
[1765335972945,2.11460484,3310.3,3310.2,0.69978661]
[1765335973146,2.11460484,3310.3,3310.2,0.00838661]
[1765335976057,2.11460484,3310.3,3310.2,0.69978661]
[1765335976353,2.11460484,3310.3,3310.2,0.00838661]
[1765335976854,2.11460484,3310.3,3310.2,0.69978661]
[1765335977242,2.11460484,3310.3,3310.2,0.00838661]
[1765335977645,5.32240484,3310.3,3310.2,0.00838661]
[1765335979149,0.4135,3310.0,3309.2,2.21158323]
[1765335979356,0.64980484,3309.6,3309.5,1.8303]
[1765335980155,0.64980484,3309.6,3309.5,1.83349109]
[1765335982052,1.36480484,3309.6,3309.5,1.83349109]
[1765335982253,2.04160484,3309.6,3309.5,1.83349109]
[1765335982654,1.36480484,3309.6,3309.5,1.83349109]
[1765335982959,2.04160484,3309.6,3309.5,0.00319109]
[1765335983358,1.41,3309.3,3309.2,0.00453206]
[1765335983659,2.46150484,3309.0,3308.9,3.2078]
[1765335984256,2.46150484,3309.0,3308.5,0.4353]
[1765335984257,1.05150484,3309.0,3308.5,1.8873]
[1765335984457,0.7228,3308.6,3308.5,1.8903122]
[1765335985066,0.64980484,3308.7,3308.6,1.452]
[1765335985254,0.7228,3309.0,3308.9,1.452]
[1765335986160,1.41,3309.0,3308.9,1.452]
[1765335988058,0.7228,3309.0,3308.9,1.452]
[1765335988257,0.64980484,3309.1,3309.0,1.865]
[1765335988258,1.37260484,3309.1,3309.0,1.865]
[1765335988455,2.05980484,3309.1,3309.0,1.865]
[1765335990458,2.05980484,3309.1,3309.0,0.7379]
[1765335991359,0.64980484,3309.1,3308.5,1.8903122]
[1765335991557,0.64980484,3309.1,3309.0,1.865]
[1765335991862,3.9306,3309.5,3309.4,1.452]
[1765335993557,3.2078,3309.5,3309.4,1.452]
[1765335994467,3.21233206,3309.9,3309.8,1.452]
[1765335996961,1.41,3309.6,3309.5,0.7379]
[1765335997168,2.05980484,3309.6,3309.5,0.7379]
[1765335997767,1.41,3309.6,3309.5,1.452]
[1765335999265,2.05980484,3309.6,3309.5,1.452]
[1765336001068,1.41,3309.3,3309.2,4.6598]
[1765336002366,1.41,3309.3,3309.2,5.46918323]
[1765336002555,2.05980484,3309.6,3309.5,1.452]
[1765336002763,2.05980484,3309.6,3309.5,1.865]
[1765336002961,0.7228,3309.6,3309.5,1.865]
[1765336004968,2.05980484,3309.6,3309.5,1.865]
[1765336005565,4.62233206,3309.9,3309.8,1.452]
[1765336006067,4.62233206,3309.9,3309.8,0.7379]
[1765336006472,4.62233206,3309.9,3309.8,1.452]
[1765336007465,1.41453206,3309.9,3309.8,1.452]
[1765336008875,0.00453206,3309.9,3309.8,1.452]
[1765336010370,0.00453206,3309.9,3309.8,2.26138323]
[1765336010576,0.00453206,3309.9,3309.8,4.6598]
[1765336010880,0.00453206,3309.9,3309.8,5.73876956]
[1765336014475,0.00453206,3309.9,3309.8,4.6598]
[1765336015176,0.00453206,3309.9,3309.8,5.73876956]
[1765336015571,3.2078,3310.3,3310.2,1.4009]
[1765336015776,0.00217271,3310.6,3310.5,1.8077]
[1765336018989,0.71947271,3310.6,3310.5,1.8077]
[1765336019188,1.40007271,3310.6,3310.5,1.8077]
[1765336020492,0.71947271,3310.6,3310.5,1.8077]
[1765336021289,1.40007271,3310.6,3310.5,1.8077]
[1765336021483,1.3979,3310.4,3310.3,4.69844083]
[1765336021685,1.3979,3310.4,3310.2,0.81737289]
[1765336021886,3.2078,3310.3,3310.2,1.40543206]
[1765336022087,1.40007271,3310.6,3310.5,1.8077]
[1765336022400,0.7173,3310.3,3310.2,1.40543206]
[1765336022897,1.63180465,3310.6,3310.5,1.4009]
[1765336023597,1.63180465,3310.6,3310.2,0.00453206]
[1765336023598,1.3979,3310.3,3310.2,1.40543206]
[1765336027398,1.3979,3310.3,3310.2,0.00453206]
[1765336028295,1.3979,3310.3,3310.2,0.69113206]
[1765336028592,1.44687271,3310.6,3310.5,1.8327]
[1765336028799,1.67872764,3310.6,3310.5,1.8327]
[1765336028993,1.67872764,3310.6,3310.5,0.6866]
[1765336029201,1.4447,3310.3,3310.2,1.40883206]
[1765336029390,1.4447,3310.3,3310.2,0.00453206]
[1765336029895,1.4447,3310.3,3310.2,0.69113206]
[1765336030202,1.4447,3310.3,3310.2,1.40883206]
[1765336030603,1.4447,3310.3,3310.2,0.00453206]
[1765336030899,4.88438393,3310.3,3310.2,0.00453206]
[1765336031103,3.43968393,3310.3,3309.7,1.4043]
[1765336031405,0.96768393,3310.2,3310.1,1.4043]
[1765336031706,1.67658393,3310.2,3310.1,1.4043]
[1765336035403,1.4447,3309.9,3309.8,0.00453206]
[1765336035710,4.88438393,3309.9,3309.8,0.00453206]
[1765336037111,5.54714578,3309.9,3309.8,0.00453206]
[1765336038709,4.88438393,3309.9,3309.8,0.00453206]
[1765336040125,4.17548393,3309.9,3309.8,1.40883206]
[1765336043830,4.88438393,3309.9,3309.8,1.40883206]
[1765336045431,3.2078,3309.9,3309.8,1.40883206]
[1765336045928,3.925,3309.9,3309.8,1.40883206]
[1765336048221,4.15681847,3309.9,3309.8,1.40883206]
[1765336050230,4.83901847,3309.9,3309.8,1.40883206]
[1765336056936,1.63121847,3309.9,3309.8,1.40883206]
[1765336063239,0.71937271,3310.6,3310.5,1.8967]
[1765336063432,1.40157271,3310.6,3310.5,1.172]
[1765336063740,1.63393626,3310.6,3310.5,0.7299]
[1765336063941,1.3994,3310.4,3310.3,2.26983672]
[1765336064142,1.63176355,3310.4,3310.3,1.4546]
[1765336067445,1.3994,3310.4,3310.3,1.4546]
[1765336071450,1.3994,3310.4,3310.3,0.7299]
[1765336071746,1.3994,3310.1,3310.0,1.54513672]
[1765336071936,2.05031321,3310.1,3310.0,1.54513672]
[1765336072434,2.05031321,3310.1,3310.0,2.26983672]
[1765336072636,2.05031321,3310.1,3310.0,2.71193672]
[1765336074752,2.05031321,3310.1,3310.0,0.81523672]
[1765336075152,2.05031321,3310.1,3310.0,1.49613672]
[1765336075352,2.05031321,3310.1,3310.0,0.81523672]
[1765336075747,1.4612,3309.9,3309.8,0.81976878]
[1765336075952,1.4612,3309.9,3309.8,0.00453206]
[1765336077043,1.4612,3309.9,3309.8,0.68543206]
[1765336077453,1.4612,3309.9,3309.8,0.00453206]
[1765336080950,1.4612,3309.9,3309.8,2.17486878]
[1765336083856,0.7438,3309.9,3309.8,2.17486878]
[1765336084159,3.2078,3310.0,3309.9,1.3551]
[1765336084160,3.9516,3310.0,3309.9,1.3551]
[1765336084553,3.2078,3310.0,3309.9,1.3551]
[1765336084958,3.9516,3310.0,3309.9,1.3551]
[1765336085355,3.9516,3310.0,3309.9,2.17033672]
[1765336087861,4.6629,3310.0,3309.9,2.17033672]
[1765336088061,4.6629,3310.0,3309.9,0.6809]
[1765336088264,4.6629,3310.0,3309.9,1.3675]
[1765336088865,1.4271,3309.9,3309.8,1.56236878]
[1765336089068,2.07801321,3309.9,3309.8,1.56236878]
[1765336089270,2.07801321,3309.9,3309.8,2.24896878]
[1765336090371,2.07801321,3309.9,3309.8,1.43373206]
[1765336090670,1.36671321,3309.9,3309.8,1.43373206]
[1765336091769,2.07801321,3309.9,3309.8,1.43373206]
[1765336092772,1.36671321,3309.9,3309.8,1.43373206]
[1765336093773,4.6349,3310.5,3310.0,0.403]
[1765336094075,0.71797271,3310.6,3310.5,1.8322]
[1765336094573,0.00217271,3310.6,3310.5,1.8322]
[1765336096269,0.00217271,3310.6,3310.5,2.64689421]
[1765336096469,0.00217271,3310.6,3310.5,1.8322]
[1765336096674,0.00217271,3310.6,3310.5,6.67047344]
[1765336097476,0.00217271,3310.6,3310.5,5.04]
[1765336098077,0.71797271,3310.6,3310.5,6.12497907]
[1765336098276,1.42927271,3310.6,3310.5,6.12497907]
[1765336098477,1.42927271,3310.6,3310.5,5.04]
[1765336099773,2.08018592,3310.6,3310.5,5.16677324]
[1765336100077,1.8389,3310.5,3310.4,0.81337324]
[1765336100673,1.4271,3310.4,3310.3,0.81337324]
[1765336101273,0.7113,3310.4,3310.2,0.81337324]
[1765336101474,1.4271,3310.2,3310.1,3.9504]
[1765336101778,1.4271,3310.2,3310.1,3.2078]
[1765336101977,1.4271,3309.9,3309.8,0.00453206]
[1765336102179,2.07801321,3309.9,3309.8,0.00453206]
[1765336103982,5.28581321,3309.9,3309.8,0.00453206]
[1765336105184,5.28581321,3309.9,3309.8,1.41863206]
[1765336107473,5.28581321,3309.9,3309.8,0.74713206]
[1765336107677,5.28581321,3309.9,3309.8,1.41863206]
[1765336108088,5.28581321,3309.9,3309.8,0.74713206]
[1765336109282,5.28581321,3309.9,3309.8,1.41863206]
[1765336111392,5.28581321,3309.9,3309.8,0.74713206]
[1765336112287,4.57451321,3309.9,3309.8,1.41863206]
[1765336112693,5.26491321,3309.9,3309.8,1.41863206]
[1765336112889,5.26491321,3309.9,3309.8,0.74713206]
[1765336117696,5.26491321,3309.9,3309.8,0.00453206]
[1765336121597,4.614,3309.9,3309.8,1.37103206]
[1765336122701,4.614,3309.9,3309.8,0.69953206]
[1765336124903,1.4062,3309.9,3309.8,1.37103206]
[1765336125201,0.7158,3309.9,3309.8,1.37103206]
[1765336125995,1.4062,3309.9,3309.8,1.37103206]
[1765336126998,2.05711321,3309.9,3309.8,0.69953206]
[1765336127197,2.05711321,3309.9,3309.8,0.00453206]
[1765336129205,2.28918331,3309.9,3309.8,0.00453206]
[1765336130303,2.28918331,3309.9,3309.8,0.8179053]
[1765336132204,2.28918331,3309.9,3309.8,0.69953206]
[1765336132397,2.28918331,3309.9,3309.8,1.37103206]
[1765336132799,1.6382701,3309.9,3309.8,1.37103206]
[1765336135799,1.6382701,3309.9,3309.8,0.69953206]
[1765336135999,1.6382701,3309.9,3309.8,0.00453206]
[1765336140501,1.6382701,3309.9,3309.8,0.73703206]
[1765336140707,0.9478701,3309.9,3309.8,1.46173206]
[1765336141302,1.4504,3309.9,3309.8,0.73703206]
[1765336141507,1.6824701,3309.9,3309.8,0.82001315]
[1765336143094,1.6824701,3309.9,3309.8,1.55251315]
[1765336143300,1.6824701,3309.9,3309.8,1.46173206]
[1765336144501,0.9478701,3309.9,3309.8,1.46173206]
[1765336144696,0.7158,3309.9,3309.8,1.46173206]
[1765336145207,1.4504,3309.9,3309.8,1.46173206]
[1765336145404,1.6824701,3309.9,3309.8,1.46173206]
[1765336145708,1.6824701,3309.9,3309.8,2.54671113]
[1765336147205,1.4504,3309.9,3309.8,2.54671113]
[1765336147408,1.68279122,3309.9,3309.8,2.54671113]
[1765336148212,1.68279122,3309.9,3309.8,1.46173206]
[1765336148409,1.68279122,3309.9,3309.8,2.54671113]
[1765336148612,0.94819122,3309.9,3309.8,2.54671113]
[1765336148799,1.60116306,3310.2,3310.1,0.7264]
[1765336149005,1.3688,3310.1,3310.0,1.5418852]
[1765336149204,1.6011632,3310.1,3310.0,1.5418852]
[1765336152014,1.6011632,3310.1,3310.0,2.2147852]
[1765336152407,1.6011632,3310.1,3310.0,2.6609852]
[1765336153912,1.6011632,3310.1,3310.0,0.8154852]
[1765336156716,1.6011632,3310.1,3310.0,2.2147852]
[1765336156923,1.6011632,3310.1,3310.0,1.5418852]
[1765336159118,1.6011632,3310.1,3310.0,2.2147852]
[1765336159314,0.9251632,3310.1,3310.0,2.2147852]
[1765336159508,1.6011632,3310.1,3310.0,2.2147852]
[1765336160213,1.6011632,3310.1,3310.0,1.5418852]
[1765336161621,1.6011632,3310.1,3310.0,0.8154852]
[1765336162020,1.6011632,3310.1,3310.0,1.5418852]
[1765336162921,1.6011632,3310.1,3310.0,0.8154852]
[1765336163320,1.6011632,3310.1,3310.0,1.5418852]
[1765336164423,1.6011632,3310.1,3310.0,0.8154852]
[1765336165321,1.7843,3310.0,3309.9,0.8154852]
[1765336165517,2.0166632,3310.0,3309.9,0.8154852]
[1765336166623,1.6088632,3310.0,3309.9,1.5152852]
[1765336167116,1.6088632,3310.0,3309.9,2.2176852]
[1765336167324,1.6088632,3310.0,3309.9,1.4022]
[1765336168821,1.6088632,3310.0,3309.9,0.6998]
[1765336169014,1.6088632,3310.0,3309.9,0.81560346]
[1765336169015,2.0166632,3310.0,3309.9,0.81560346]
[1765336170626,1.6088632,3310.0,3309.9,1.51540346]
[1765336170828,2.0166632,3310.0,3309.9,0.81560346]
[1765336173421,1.3765,3309.9,3309.8,0.82013552]
[1765336173623,1.6088632,3309.9,3309.8,0.82013552]
[1765336176535,2.27158129,3309.9,3309.8,0.82013552]
[1765336177633,2.27158129,3309.9,3309.8,1.51993552]
[1765336179838,2.27158129,3309.9,3309.8,2.22233552]
[1765336181133,0.9314632,3309.9,3309.8,2.22233552]
[1765336181333,0.9314632,3309.9,3309.8,1.40673206]
[1765336181830,0.6991,3309.9,3309.8,1.40673206]
[1765336182136,0.6991,3309.9,3309.8,2.22219]
[1765336183239,0.6991,3309.9,3309.8,1.40673206]
[1765336185631,0.93187728,3309.9,3309.8,1.40673206]
[1765336186036,0.6991,3309.9,3309.8,1.40673206]
[1765336187036,0.6991,3309.9,3309.8,2.49171113]
[1765336187428,1.3765,3309.9,3309.8,1.40673206]
[1765336187631,1.60927728,3309.9,3309.8,1.40673206]
[1765336189332,0.93187728,3309.9,3309.8,1.40673206]
[1765336189539,0.6991,3309.9,3309.8,1.40673206]
[1765336189933,0.23277728,3310.2,3309.8,1.40673206]
[1765336189934,0.23277728,3310.2,3310.1,1.4022]
[1765336190139,1.60763335,3310.6,3310.5,1.8486]
[1765336190140,0.00217271,3310.6,3310.5,1.8486]
[1765336190341,0.00217271,3310.6,3310.5,2.66335807]
[1765336191138,0.00217271,3310.6,3310.5,2.6629201]
[1765336192845,1.37867271,3310.6,3310.5,0.8143201]
[1765336193039,1.37867271,3310.6,3310.5,1.5141201]
[1765336193244,1.37867271,3310.6,3310.5,1.3814]
[1765336193446,1.37867271,3310.6,3310.5,1.8152]
[1765336193841,0.00217271,3310.6,3310.5,1.8152]
[1765336200052,0.00217271,3310.6,3310.5,2.6295201]
[1765336202153,0.00217271,3310.6,3310.5,1.8152]
[1765336202154,0.72167271,3310.6,3310.5,1.8152]
[1765336202346,0.00217271,3310.6,3310.5,1.8152]
[1765336204253,0.72167271,3310.6,3310.5,1.8152]
[1765336204449,1.4388,3310.2,3310.1,4.7348201]
[1765336204653,1.4388,3310.2,3310.1,3.9205]
[1765336204855,1.4388,3310.2,3310.1,4.6021]
[1765336205058,1.4388,3310.2,3310.1,5.41444179]
[1765336205257,0.72167271,3310.6,3310.5,1.8281]
[1765336205457,0.00217271,3310.6,3310.5,1.8281]
[1765336205862,3.19035631,3310.7,3310.6,1.4256]
[1765336206061,3.2078,3311.2,3310.8,1.4256]
[1765336206565,3.85853795,3311.2,3310.8,1.4256]
[1765336206768,0.00693173,3310.9,3310.8,1.4256]
[1765336212269,4.6779,3311.6,3311.5,0.7055]
[1765336212565,5.56063929,3311.6,3311.5,0.7055]
[1765336213460,5.56348856,3311.6,3311.5,0.7093268]
[1765336215061,5.56348856,3311.6,3311.5,1.8560268]
[1765336215062,4.18345061,3311.6,3311.5,1.8560268]
[1765336215268,0.00284927,3311.6,3311.5,1.8560268]
[1765336215963,0.00284927,3311.6,3311.5,2.6679383]
[1765336216263,0.00453206,3311.9,3311.8,1.4256]
[1765336216663,0.00453206,3311.9,3311.8,2.23666011]
[1765336216865,0.00453206,3311.9,3311.8,1.4256]
[1765336217064,0.00453206,3311.9,3311.8,2.51194409]
[1765336217065,0.0077233,3311.9,3311.8,2.51194409]
[1765336217264,0.0077233,3311.9,3311.8,1.4256]
[1765336217467,0.0077233,3311.9,3311.8,2.51194409]
[1765336218467,3.85853795,3312.8,3311.8,2.51194409]
[1765336218668,5.32863795,3312.8,3312.7,0.7055]
[1765336218865,5.56039587,3312.8,3312.7,0.7055]
[1765336219057,5.56039587,3312.8,3312.0,1.23654849]
[1765336219264,5.32863795,3312.8,3312.7,0.7055]
[1765336219465,5.32863795,3312.8,3312.7,1.4256]
[1765336219466,5.33178444,3312.8,3312.7,1.4256]
[1765336219665,4.68104649,3312.8,3312.7,1.4256]
[1765336219970,4.68104649,3312.8,3312.7,0.7055]
[1765336220169,1.4701,3312.6,3312.5,1.8522]
[1765336221365,4.68104649,3312.8,3312.7,1.4256]
[1765336221567,3.21094649,3312.8,3312.7,1.4256]
[1765336222067,3.95174649,3312.8,3312.7,1.4256]
[1765336222964,0.74394649,3312.8,3312.7,1.4256]
[1765336223166,0.00453206,3313.1,3312.7,1.4256]
[1765336223370,0.00453206,3313.1,3313.0,1.8419]
[1765336224373,0.00801003,3313.1,3313.0,1.8419]
[1765336225078,0.69371003,3313.1,3313.0,1.8419]
[1765336225773,0.00801003,3313.1,3313.0,1.8419]
[1765336227568,1.36461003,3313.1,3312.6,3.35874]
[1765336227780,1.3566,3312.7,3312.6,3.9258]
[1765336228183,1.3566,3312.3,3312.2,4.6248]
[1765336228473,4.57241003,3313.1,3313.0,1.8419]
[1765336228869,3.21581003,3313.1,3313.0,1.8419]
[1765336230973,1.0959,3314.0,3313.9,0.5871]
[1765336231175,4.9746,3314.0,3313.9,0.5871]
[1765336231473,3.6162,3314.5,3313.9,5.18360795]
[1765336231675,3.6162,3314.5,3314.4,1.1742]
[1765336231870,4.9728,3314.5,3314.4,1.1742]
[1765336232068,4.9728,3314.5,3314.4,0.00383956]
[1765336232069,4.29064175,3314.5,3314.4,0.00383956]
[1765336232271,4.97634175,3314.5,3314.4,1.17803956]
[1765336232472,1.76854175,3314.5,3314.4,1.17803956]
[1765336234273,1.76854175,3314.5,3314.4,0.59093956]
[1765336234473,1.76854175,3314.5,3314.4,0.00383956]
[1765336234672,1.09764175,3314.5,3314.4,1.17803956]
[1765336236076,0.41194175,3314.5,3314.4,1.17803956]
[1765336236477,1.09764175,3314.5,3314.4,1.17803956]
[1765336236677,1.76854175,3314.5,3314.4,1.17803956]
[1765336238083,1.76854175,3314.5,3314.4,0.00383956]
[1765336240981,1.7668,3314.0,3313.9,3.2078]
[1765336241182,2.41753795,3314.0,3313.9,3.2078]
[1765336241986,1.7668,3314.0,3313.9,4.39247682]
[1765336242689,1.7668,3314.0,3313.9,3.80147682]
[1765336243188,1.7668,3314.0,3313.9,3.21047682]
[1765336245092,1.7668,3314.0,3313.9,4.39247682]
[1765336246081,1.0959,3314.0,3313.9,4.39247682]
[1765336246291,1.7668,3314.0,3313.9,4.39247682]
[1765336246695,0.4102,3314.0,3313.9,4.39247682]
[1765336247093,5.6270797,3314.5,3314.4,0.591]
[1765336247500,2.4192797,3314.5,3314.4,0.591]
[1765336247790,2.4192797,3314.5,3314.4,1.182]
[1765336248300,2.4192797,3314.5,3314.4,0.591]
[1765336253694,1.3592,3314.4,3314.3,3.2078]
[1765336253994,1.7574,3314.0,3313.9,3.21047682]
[1765336254194,2.40813795,3314.0,3313.9,3.21047682]
[1765336254401,1.7574,3314.0,3313.9,3.80047682]
[1765336254600,0.4066,3314.0,3313.9,4.39047682]
[1765336255101,1.0839,3314.0,3313.9,4.39047682]
[1765336255303,1.7574,3314.0,3313.9,3.80047682]
[1765336256295,1.7574,3314.0,3313.9,4.39047682]
[1765336257301,0.4066,3314.0,3313.9,4.39047682]
[1765336258106,1.0839,3314.0,3313.9,4.39047682]
[1765336258304,1.0839,3314.0,3313.9,5.20042531]
[1765336258606,1.08924175,3314.5,3314.4,1.18]
[1765336259107,1.76274175,3314.5,3314.4,1.18]
[1765336260410,1.3508,3314.4,3314.3,3.2078]
[1765336260708,1.3508,3314.4,3314.3,4.3878]
[1765336260909,0.41194175,3314.5,3314.4,1.18]
[1765336261503,1.76274175,3314.5,3314.4,1.98867439]
[1765336261698,1.76274175,3314.5,3314.4,1.18]
[1765336262008,1.76274175,3314.5,3314.4,1.98908962]
[1765336262203,0.41194175,3314.5,3314.4,1.98908962]
[1765336263209,1.76274175,3314.5,3314.4,1.98908962]
[1765336264806,1.76274175,3314.5,3314.4,0.80908962]
[1765336265110,1.3508,3314.4,3314.3,3.2078]
[1765336269807,1.3508,3314.4,3314.3,4.01688962]
[1765336270008,1.3508,3314.4,3314.3,3.2078]
[1765336270209,1.3508,3314.4,3314.3,4.01688962]
[1765336271709,1.3508,3314.4,3314.3,4.60678962]
[1765336272314,1.3508,3314.4,3314.3,4.01688962]
[1765336272911,1.3508,3314.4,3314.3,4.60678962]
[1765336273914,1.3508,3314.4,3314.3,4.01688962]
[1765336274307,1.3508,3314.4,3314.3,4.60678962]
[1765336275206,1.3508,3314.4,3314.3,5.19668962]
[1765336276122,1.3508,3314.4,3314.3,4.3876]
[1765336276309,1.12114175,3314.5,3314.4,1.1798]
[1765336276515,2.08430927,3314.5,3314.4,1.98976711]
[1765336277916,1.85174175,3314.5,3314.4,1.98976711]
[1765336278110,1.85174175,3314.5,3314.4,0.80996711]
[1765336278915,2.08432603,3314.5,3314.4,0.80996711]
[1765336280010,2.08432603,3314.5,3314.4,1.39986711]
[1765336282718,2.08432603,3314.5,3314.4,0.80996711]
[1765336285913,0.64452603,3314.5,3314.4,1.98816711]
[1765336286118,0.41194175,3314.5,3314.4,1.1782]
[1765336286322,1.11064175,3314.5,3314.4,1.1782]
[1765336286522,1.83754175,3314.5,3314.4,1.1782]
[1765336286719,0.41194175,3314.5,3314.4,1.1782]
[1765336286917,1.11064175,3314.5,3314.4,1.1782]
[1765336287224,1.83754175,3314.5,3314.4,2.26454409]
[1765336289122,2.07031031,3314.5,3314.4,1.67624409]
[1765336289323,2.07031031,3314.5,3314.4,1.08634409]
[1765336290126,2.07031965,3314.5,3314.4,1.08634409]
[1765336290326,2.07031965,3314.5,3314.4,1.67464409]
[1765336290928,2.07031965,3314.5,3314.4,1.08634409]
[1765336291733,2.07031965,3314.5,3314.4,1.67464409]
[1765336292529,2.07031965,3314.5,3314.4,1.08634409]
[1765336293229,2.07031965,3314.5,3314.4,1.67464409]
[1765336294827,2.07031965,3314.5,3314.4,2.26294409]
[1765336297232,0.64471965,3314.5,3314.4,2.26294409]
[1765336297527,0.41194175,3314.5,3314.4,2.26294409]
[1765336297727,1.11064175,3314.5,3314.4,2.26294409]
[1765336297931,2.07031965,3314.5,3314.4,2.26294409]
[1765336298644,1.34341965,3314.5,3314.4,2.26294409]
[1765336302934,2.07031965,3314.5,3314.4,2.26294409]
[1765336303423,2.9885741,3314.5,3314.4,1.08634409]
[1765336304031,0.64471965,3314.5,3314.4,2.26294409]
[1765336304234,0.00354175,3314.5,3314.4,1.1766]
[1765336307238,0.42574175,3314.5,3314.4,1.1766]
[1765336312344,1.12444175,3314.5,3314.4,1.1766]
[1765336312548,1.85134175,3314.5,3314.4,1.1766]
[1765336314455,1.12444175,3314.5,3314.4,1.1766]
[1765336314956,0.42574175,3314.5,3314.4,1.1766]
[1765336320463,1.11864175,3314.5,3314.4,1.1766]
[1765336322762,1.82304175,3314.5,3314.4,1.1766]
[1765336322961,1.82304175,3314.5,3314.4,0.5883]
[1765336323161,1.82304175,3314.5,3314.4,1.1784]
[1765336323563,1.11864175,3314.5,3314.4,1.1784]
[1765336324964,1.82304175,3314.5,3314.4,1.1784]
[1765336326063,1.11864175,3314.5,3314.4,1.1784]
[1765336329764,0.42574175,3314.5,3314.4,1.1784]
[1765336329955,0.00354175,3314.5,3314.4,2.06858911]
[1765336330160,0.23352864,3315.3,3315.2,1.1772]
[1765336330466,1.60546064,3315.7,3315.2,1.1772]
[1765336330467,1.1045,3315.5,3315.4,1.1772]
[1765336330657,0.64372864,3315.5,3315.4,1.98855532]
[1765336330858,0.4102,3315.5,3315.4,1.98855532]
[1765336331155,0.4102,3315.5,3315.4,2.06738911]
[1765336331156,0.41365085,3315.5,3315.4,2.06738911]
[1765336331360,0.41365085,3315.5,3315.4,3.14661143]
[1765336332361,0.41365085,3315.5,3315.4,2.06738911]
[1765336334454,0.41365085,3315.5,3315.4,2.87557019]
[1765336334661,0.00345085,3315.5,3315.4,2.87557019]
[1765336335265,1.10085085,3315.5,3315.4,1.98538108]
[1765336336868,0.40655085,3315.5,3315.4,1.98538108]
[1765336338166,0.00345085,3315.5,3315.4,1.98538108]
[1765336338472,0.00345085,3315.5,3315.4,2.25642232]
[1765336339371,0.00345085,3315.5,3315.4,2.40723232]
[1765336339967,0.00345085,3315.5,3315.4,1.32801]
[1765336340173,0.40655085,3315.5,3315.4,2.21819911]
[1765336341065,2.68113996,3315.5,3315.4,0.8069104]
[1765336341269,1.3844,3315.3,3315.2,4.385]
[1765336341567,1.79095085,3315.5,3315.4,1.1772]
[1765336341761,1.79095085,3315.5,3315.4,0.5886]
[1765336343469,1.10085085,3315.5,3315.4,1.1772]
[1765336343774,0.40655085,3315.5,3315.4,1.1772]
[1765336344376,1.13105085,3315.5,3315.4,1.1772]
[1765336344765,0.40655085,3315.5,3315.4,1.1772]
[1765336345566,0.00345085,3315.5,3315.4,1.1772]
[1765336345765,0.00345085,3315.5,3315.4,0.5886]